bitfinex-derivatives/quotes_BTCF0:USTF0_20250405
["timestamp","ask_amount","ask_price","bid_price","bid_amount"]
[1743877562703,0.042916,82978.0,82977.0,0.3553927]
[1743877562904,0.042916,82978.0,82977.0,0.4290927]
[1743877563211,0.242916,82978.0,82977.0,0.4290927]
[1743877563802,0.243916,82978.0,82977.0,0.4290927]
[1743877564709,0.244916,82978.0,82977.0,0.4290927]
[1743877565509,0.20272,82978.0,82977.0,0.4290927]
[1743877569514,0.23722,82978.0,82977.0,0.4290927]
[1743877570111,0.11116,82978.0,82977.0,0.4290927]
[1743877570703,0.3608,82984.0,82981.0,0.0421943]
[1743877570911,0.3608,82984.0,82983.0,0.0843866]
[1743877571213,0.0843819,82988.0,82986.0,0.0843836]
[1743877571413,0.0843819,82988.0,82986.0,0.4426036]
[1743877571610,0.0843819,82988.0,82986.0,0.4776036]
[1743877571813,0.0421894,82991.0,82986.0,0.4776036]
[1743877572016,0.1208784,82992.0,82991.0,0.0843785]
[1743877572216,0.0843784,82992.0,82991.0,0.3155385]
[1743877572518,0.0843784,82992.0,82991.0,0.3840385]
[1743877572920,0.2843784,82992.0,82991.0,0.3840385]
[1743877573715,0.2,82992.0,82991.0,0.3840385]
[1743877574116,0.0358,82999.0,82998.0,0.0843714]
[1743877574316,0.0358,82999.0,82998.0,0.3654914]
[1743877574619,0.3201704,82999.0,82998.0,0.4739914]
[1743877575527,0.3548704,82999.0,82998.0,0.4739914]
[1743877575710,0.3588704,82999.0,82998.0,0.4739914]
[1743877575911,0.3588704,82999.0,82998.0,0.4381914]
[1743877576916,0.3608704,82999.0,82998.0,0.4381914]
[1743877577115,0.3608704,82999.0,82998.0,0.7989914]
[1743877578815,0.2765,82999.0,82998.0,0.7989914]
[1743877579016,0.3608704,82999.0,82998.0,0.7989914]
[1743877580021,0.3608704,82999.0,82998.0,0.7620914]
[1743877580223,0.1608704,82999.0,82998.0,0.7620914]
[1743877586126,0.04455,82999.0,82998.0,0.7620914]
[1743877586426,0.0407,82999.0,82998.0,0.7981914]
[1743877587525,0.0387,82999.0,82998.0,0.7981914]
[1743877587922,0.0367,82999.0,82998.0,0.7981914]
[1743877588322,0.0367,82999.0,82998.0,0.7620914]
[1743877588529,0.0347,82999.0,82998.0,0.7620914]
[1743877588730,0.1190704,82999.0,82998.0,0.7620914]
[1743877589430,0.1544704,82999.0,82998.0,0.7620914]
[1743877590929,0.0701,82999.0,82998.0,0.7620914]
[1743877591131,0.1544704,82999.0,82998.0,0.7620914]
[1743877591629,0.0701,82999.0,82998.0,0.7620914]
[1743877592621,0.05383,82999.0,82998.0,0.7620914]
[1743877593130,0.0364,83005.0,83004.0,0.0843653]
[1743877593435,0.0364,83005.0,83004.0,0.3655253]
[1743877593629,0.1207643,83005.0,83004.0,0.3655253]
[1743877594232,0.1207643,83005.0,83004.0,0.4351253]
[1743877594432,0.1227643,83005.0,83004.0,0.4351253]
[1743877595029,0.1237643,83005.0,83004.0,0.4351253]
[1743877596230,0.1607643,83005.0,83004.0,0.4351253]
[1743877598832,0.1977643,83005.0,83004.0,0.4351253]
[1743877613348,0.1977643,83005.0,83004.0,0.48642219]
[1743877615751,0.1678643,83005.0,83004.0,0.48642219]
[1743877615950,0.5286643,83005.0,83004.0,0.36645689]
[1743877616146,0.5286643,83005.0,83004.0,0.05245689]
[1743877616446,0.7286643,83005.0,83004.0,0.00116]
[1743877616849,0.0843653,83004.0,83003.0,0.28686344]
[1743877617244,0.1575653,83004.0,83003.0,0.28802344]
[1743877617845,0.3575653,83004.0,83003.0,0.28802344]
[1743877618353,0.3585653,83004.0,83003.0,0.28802344]
[1743877618554,0.3595653,83004.0,83003.0,0.28802344]
[1743877620952,0.3595653,83004.0,83003.0,0.00116]
[1743877621151,0.0843714,82998.0,82997.0,0.084372]
[1743877621343,0.4451714,82998.0,82997.0,0.00112]
[1743877621549,0.0843724,82997.0,82996.0,0.08455385]
[1743877621846,0.1265657,82993.0,82992.0,0.0843734]
[1743877622048,0.1265657,82993.0,82992.0,0.2097488]
[1743877622755,0.1621657,82993.0,82992.0,0.05]
[1743877623138,0.1621657,82993.0,82992.0,0.052]
[1743877623343,0.3621657,82993.0,82992.0,0.052]
[1743877623545,0.3621657,82993.0,82992.0,0.05]
[1743877623947,0.3621657,82993.0,82992.0,0.013]
[1743877624148,0.3621657,82993.0,82992.0,0.014]
[1743877624350,0.3621657,82993.0,82992.0,0.012]
[1743877625052,0.3265657,82993.0,82992.0,0.012]
[1743877625255,0.3272057,82993.0,82992.0,0.0128]
[1743877625750,0.3272057,82993.0,82992.0,0.0472]
[1743877626857,0.3620057,82993.0,82992.0,0.0472]
[1743877628161,0.3272057,82993.0,82992.0,0.0472]
[1743877628662,0.0421877,82995.0,82992.0,0.0472]
[1743877628663,0.00018075,83013.0,82993.0,0.0421882]
[1743877628853,0.00018075,83013.0,82999.0,0.0843704]
[1743877628854,0.0843687,83001.0,82999.0,0.0843704]
[1743877629054,0.0853687,83001.0,83000.0,0.0693]
[1743877629256,0.001,83001.0,83000.0,0.4146693]
[1743877629561,0.0853683,83001.0,83000.0,0.3303]
[1743877630258,0.001,83001.0,83000.0,0.4146693]
[1743877631760,0.0421837,83002.0,83001.0,0.0843683]
[1743877631962,0.0421837,83002.0,83001.0,0.3353683]
[1743877632149,0.0421837,83002.0,83001.0,0.3709683]
[1743877633256,0.0431837,83002.0,83001.0,0.3709683]
[1743877633963,0.0441837,83002.0,83001.0,0.3709683]
[1743877634362,0.0441837,83002.0,83001.0,0.42219776]
[1743877634758,0.0441837,83002.0,83001.0,0.3709683]
[1743877635364,0.0441837,83002.0,83001.0,0.42219962]
[1743877635567,0.0441837,83002.0,83001.0,0.3709683]
[1743877636162,0.002,83002.0,83001.0,0.4044683]
[1743877636362,0.002,83002.0,83001.0,0.45569934]
[1743877642070,0.0843602,83009.0,83008.0,0.0843602]
[1743877642275,0.0843602,83009.0,83008.0,0.2654002]
[1743877642665,0.2843602,83009.0,83008.0,0.3385002]
[1743877643582,0.3207602,83009.0,83008.0,0.3385002]
[1743877643878,0.3227602,83009.0,83008.0,0.3385002]
[1743877644282,0.3237602,83009.0,83008.0,0.3735002]
[1743877644784,0.3237602,83009.0,83008.0,0.38249025]
[1743877645175,0.2873602,83009.0,83008.0,0.38249025]
[1743877645373,0.11783003,83021.0,83008.0,0.29813005]
[1743877645574,0.23937843,83021.0,83020.0,0.084349]
[1743877645775,1.0,83025.0,83024.0,0.084345]
[1743877645977,0.99275795,83025.0,83024.0,0.365345]
[1743877646180,0.99275795,83025.0,83024.0,0.440745]
[1743877646988,0.99575795,83025.0,83024.0,0.440745]
[1743877651087,0.99275795,83025.0,83024.0,0.440745]
[1743877651887,0.51573773,83025.0,83024.0,0.440745]
[1743877652088,0.1002,83042.0,83041.0,0.0843277]
[1743877652286,0.1845267,83042.0,83041.0,0.3643277]
[1743877652481,0.1845267,83042.0,83041.0,0.3653677]
[1743877653081,0.1845267,83042.0,83041.0,0.28104]
[1743877653286,0.3845267,83042.0,83041.0,0.3653677]
[1743877653480,0.3845267,83042.0,83041.0,0.28104]
[1743877653792,0.3845267,83042.0,83041.0,0.3653677]
[1743877653979,0.3845267,83042.0,83041.0,0.28104]
[1743877654388,0.3875267,83042.0,83041.0,0.28104]
[1743877656090,0.2873267,83042.0,83041.0,0.3653677]
[1743877656294,0.203,83042.0,83041.0,0.3653677]
[1743877656486,0.203,83042.0,83041.0,0.4017677]
[1743877657391,0.2873267,83042.0,83041.0,0.7625677]
[1743877657598,0.3251267,83042.0,83041.0,0.7625677]
[1743877657797,0.2408,83042.0,83041.0,0.7625677]
[1743877660599,0.3251267,83042.0,83041.0,0.7261677]
[1743877660897,0.3613267,83042.0,83041.0,0.7261677]
[1743877662894,0.3251267,83042.0,83041.0,0.7261677]
[1743877663400,0.3251267,83042.0,83041.0,0.7622677]
[1743877663595,0.3635267,83042.0,83041.0,0.7622677]
[1743877663995,0.3635267,83042.0,83041.0,0.64184]
[1743877664404,0.3635267,83042.0,83041.0,0.28104]
[1743877668307,0.3625267,83042.0,83041.0,0.28104]
[1743877671308,0.3625267,83042.0,83041.0,0.08104]
[1743877671503,0.0843338,83035.0,83034.0,0.0359]
[1743877671806,0.0843338,83035.0,83034.0,0.0469]
[1743877672206,0.1585338,83035.0,83034.0,0.0469]
[1743877672998,0.3585338,83035.0,83034.0,0.1312348]
[1743877673202,0.3585338,83035.0,83034.0,0.0469]
[1743877680311,0.3585338,83035.0,83034.0,0.1312348]
[1743877680513,0.3585338,83035.0,83034.0,0.0469]
[1743877682407,0.7193338,83035.0,83034.0,0.0469]
[1743877682599,0.0421684,83032.0,83030.0,0.12306344]
[1743877682913,0.1564378,83031.0,83030.0,0.12306344]
[1743877683210,0.1564378,83031.0,83030.0,0.08686344]
[1743877683401,0.3564378,83031.0,83030.0,0.08686344]
[1743877683802,0.3564378,83031.0,83030.0,0.08786344]
[1743877684003,0.3564378,83031.0,83030.0,0.002]
[1743877685009,0.3204978,83031.0,83030.0,0.02276]
[1743877685503,0.3576978,83031.0,83030.0,0.02276]
[1743877686217,0.3576978,83031.0,83030.0,0.05926]
[1743877686707,0.3576978,83031.0,83030.0,0.03926]
[1743877688015,0.3576978,83031.0,83030.0,0.00276]
[1743877688815,0.0843419,83027.0,83026.0,0.05451599]
[1743877689112,0.0851419,83027.0,83026.0,0.05523599]
[1743877689316,0.1945419,83027.0,83026.0,0.05523599]
[1743877690414,0.3945419,83027.0,83026.0,0.05723599]
[1743877690619,0.3945419,83027.0,83026.0,0.05923599]
[1743877692817,0.3945419,83027.0,83026.0,0.00472]
[1743877693919,0.3945419,83027.0,83026.0,0.04112]
[1743877695921,0.3945419,83027.0,83026.0,0.05112]
[1743877698633,0.7553419,83027.0,83026.0,0.05112]
[1743877699332,0.7182419,83027.0,83026.0,0.08802]
[1743877700038,0.6811419,83027.0,83026.0,0.08802]
[1743877701339,0.3203419,83027.0,83026.0,0.08802]
[1743877701540,0.3203419,83027.0,83026.0,0.0873]
[1743877701838,0.3203419,83027.0,83026.0,0.0504]
[1743877702042,0.6353,83027.0,83007.0,0.00180693]
[1743877702340,0.0843602,83009.0,83008.0,0.18]
[1743877702541,0.0843663,83003.0,83002.0,0.46261698]
[1743877702730,0.0843663,83003.0,83002.0,0.54045779]
[1743877703441,0.1211663,83003.0,83002.0,0.61445779]
[1743877703742,0.0843663,83003.0,83002.0,0.61445779]
[1743877703942,0.0843663,83003.0,83002.0,0.69882509]
[1743877704142,0.0843663,83003.0,83002.0,0.61445779]
[1743877704332,0.2843663,83003.0,83002.0,0.61445779]
[1743877704738,0.2843663,83003.0,83002.0,0.61645779]
[1743877705129,0.2851663,83003.0,83002.0,0.61709779]
[1743877705330,0.2851663,83003.0,83002.0,0.65389779]
[1743877705625,0.2851663,83003.0,83002.0,0.45489779]
[1743877706833,0.3238663,83003.0,83002.0,0.45489779]
[1743877707633,0.2851663,83003.0,83002.0,0.45489779]
[1743877714147,0.3220663,83003.0,83002.0,0.41809779]
[1743877714350,0.3593663,83003.0,83002.0,0.41809779]
[1743877716248,0.2851663,83003.0,83002.0,0.50246509]
[1743877716653,0.2851663,83003.0,83002.0,0.41809779]
[1743877719453,0.3212663,83003.0,83002.0,0.41809779]
[1743877719849,0.3212663,83003.0,83002.0,0.50246509]
[1743877722147,0.3212663,83003.0,83002.0,0.23984811]
[1743877722447,0.2851663,83003.0,83002.0,0.23984811]
[1743877723750,0.2851663,83003.0,83002.0,0.15548081]
[1743877723953,0.3241663,83003.0,83002.0,0.15548081]
[1743877724148,0.3615663,83003.0,83002.0,0.15548081]
[1743877724345,0.3615663,83003.0,83002.0,0.00448081]
[1743877724551,0.3615663,83003.0,83002.0,0.283]
[1743877724751,0.3615663,83003.0,83002.0,0.28364]
[1743877725554,0.3615663,83003.0,83002.0,0.33116429]
[1743877725948,0.3615663,83003.0,83002.0,0.32716429]
[1743877726355,0.3615663,83003.0,83002.0,0.31416429]
[1743877727662,0.3615663,83003.0,83002.0,0.35176429]
[1743877729151,0.3615663,83003.0,83002.0,0.34476429]
[1743877729551,0.3615663,83003.0,83002.0,0.33876429]
[1743877729751,0.3615663,83003.0,83002.0,0.31976429]
[1743877732160,0.3615663,83003.0,83002.0,0.28216429]
[1743877732346,0.3615663,83003.0,83002.0,0.08216429]
[1743877732553,0.3615663,83003.0,83002.0,0.04752429]
[1743877732753,0.0843734,82996.0,82995.0,0.01471272]
[1743877732955,0.0843734,82996.0,82995.0,0.13662469]
[1743877733155,0.1581734,82996.0,82995.0,0.13662469]
[1743877733356,0.1589734,82996.0,82995.0,0.12251441]
[1743877733757,0.1589734,82996.0,82995.0,0.16964977]
[1743877733959,0.1581734,82996.0,82995.0,0.16964977]
[1743877734159,0.1589734,82996.0,82995.0,0.16964977]
[1743877734359,0.3589734,82996.0,82995.0,0.16964977]
[1743877735055,0.3589734,82996.0,82995.0,0.17264977]
[1743877740467,0.3589734,82996.0,82995.0,0.17200977]
[1743877740862,0.3589734,82996.0,82995.0,0.17280977]
[1743877742463,0.3589734,82996.0,82995.0,0.1215378]
[1743877742665,0.3589734,82996.0,82995.0,0.1207378]
[1743877745661,0.3589734,82996.0,82995.0,0.1214578]
[1743877746154,0.3589734,82996.0,82995.0,0.1207378]
[1743877747970,0.3589734,82996.0,82995.0,0.1213778]
[1743877748766,0.0843795,82990.0,82989.0,0.13986886]
[1743877748970,0.4462595,82990.0,82989.0,0.20050886]
[1743877749269,0.5598595,82990.0,82989.0,0.20114886]
[1743877749470,0.5598595,82990.0,82989.0,0.20050886]
[1743877750061,0.7598595,82990.0,82989.0,0.20050886]
[1743877750471,0.7598595,82990.0,82989.0,0.10050886]
[1743877750662,0.7598595,82990.0,82989.0,0.07486886]
[1743877750863,0.7598595,82990.0,82989.0,0.07586886]
[1743877751266,0.7598595,82990.0,82989.0,0.062]
[1743877751462,0.7598595,82990.0,82989.0,0.10998076]
[1743877751964,0.7598595,82990.0,82989.0,0.10198076]
[1743877752157,0.7598595,82990.0,82989.0,0.08998076]
[1743877753272,0.7598595,82990.0,82989.0,0.08798076]
[1743877753771,0.7598595,82990.0,82989.0,0.04498076]
[1743877753963,0.7598595,82990.0,82989.0,0.03]
[1743877755368,0.86816937,82990.0,82989.0,0.03]
[1743877756262,0.86816937,82990.0,82989.0,0.06785801]
[1743877757172,0.86816937,82990.0,82989.0,0.04685801]
[1743877757471,0.0843836,82986.0,82985.0,0.0375]
[1743877757674,0.0843836,82986.0,82985.0,0.0875]
[1743877757868,0.1583836,82986.0,82985.0,0.0875]
[1743877758065,0.35934361,82986.0,82985.0,0.0875]
[1743877758764,0.35934361,82986.0,82985.0,0.0895]
[1743877761471,0.35934361,82986.0,82985.0,0.13701422]
[1743877762275,0.35934361,82986.0,82985.0,0.21181422]
[1743877763380,0.35934361,82986.0,82985.0,0.17501422]
[1743877765078,0.35934361,82986.0,82981.0,0.03698075]
[1743877765079,0.0843887,82981.0,82980.0,0.41470075]
[1743877765280,0.4451887,82981.0,82980.0,0.11]
[1743877765579,0.44614871,82981.0,82980.0,0.11]
[1743877765877,0.51974871,82981.0,82980.0,0.11]
[1743877766178,0.71974871,82981.0,82980.0,0.11]
[1743877766477,0.71974871,82981.0,82980.0,0.111]
[1743877767773,0.71974871,82981.0,82980.0,0.15945707]
[1743877768277,0.71974871,82981.0,82980.0,0.13645707]
[1743877768474,0.0843917,82978.0,82977.0,0.03755707]
[1743877768669,0.08543171,82978.0,82977.0,0.18755707]
[1743877769064,0.12103171,82978.0,82977.0,0.18755707]
[1743877770182,0.32103171,82978.0,82977.0,0.18855707]
[1743877770784,0.32103171,82978.0,82977.0,0.18955707]
[1743877772673,0.32103171,82978.0,82977.0,0.2368782]
[1743877776577,0.32103171,82978.0,82977.0,0.2613782]
[1743877778589,0.32103171,82978.0,82977.0,0.3457709]
[1743877778789,0.32103171,82978.0,82977.0,0.39704832]
[1743877779086,0.32103171,82978.0,82977.0,0.31265562]
[1743877782692,0.32103171,82978.0,82977.0,0.39704832]
[1743877783192,0.08543171,82978.0,82977.0,0.39704832]
[1743877783382,0.0843917,82978.0,82977.0,0.39704832]
[1743877784190,0.1208917,82978.0,82977.0,0.39704832]
[1743877784890,0.12185171,82978.0,82977.0,0.39704832]
[1743877795301,0.15935171,82978.0,82977.0,0.39704832]
[1743877797786,0.15935171,82978.0,82977.0,0.37254832]
[1743877798692,0.19775171,82978.0,82977.0,0.37254832]
[1743877800689,0.11336001,82978.0,82977.0,0.37254832]
[1743877800894,0.0384,82978.0,82977.0,0.37254832]
[1743877801203,0.10830987,82980.0,82979.0,0.0843907]
[1743877801407,0.10830987,82980.0,82979.0,0.43974427]
[1743877801606,0.22854942,82985.0,82984.0,0.0843856]
[1743877801801,0.14416462,82985.0,82984.0,0.6951856]
[1743877801998,0.22854922,82985.0,82984.0,0.77736302]
[1743877802198,0.22854922,82985.0,82984.0,0.79143917]
[1743877802707,0.14416462,82985.0,82984.0,0.79143917]
[1743877803303,0.14416462,82985.0,82984.0,0.77936302]
[1743877804105,0.18346462,82985.0,82984.0,0.77936302]
[1743877804306,0.26784922,82985.0,82984.0,0.77936302]
[1743877804905,0.26784922,82985.0,82984.0,0.79343917]
[1743877805106,0.26852922,82985.0,82984.0,0.78000302]
[1743877805306,0.18414462,82985.0,82984.0,0.78000302]
[1743877805503,0.03998,82985.0,82984.0,0.78000302]
[1743877805902,0.1183271,82991.0,82990.0,0.0843795]
[1743877806206,0.1183271,82991.0,82990.0,0.38649692]
[1743877806509,0.1189671,82991.0,82990.0,0.46819692]
[1743877806708,0.1190871,82991.0,82990.0,0.46819692]
[1743877808906,0.1183271,82991.0,82990.0,0.46819692]
[1743877809102,0.1190871,82991.0,82990.0,0.46819692]
[1743877809408,0.0411,82993.0,82992.0,0.0843775]
[1743877809601,0.04186,82993.0,82992.0,0.74725492]
[1743877809802,0.04186,82993.0,82992.0,0.78555492]
[1743877810003,0.0411,82993.0,82992.0,0.78555492]
[1743877811614,0.1254765,82993.0,82992.0,0.78555492]
[1743877811915,0.0419,82993.0,82992.0,0.78555492]
[1743877812102,0.1254765,82993.0,82992.0,0.30207742]
[1743877812298,0.1671365,82993.0,82992.0,0.30207742]
[1743877812503,0.1671365,82993.0,82992.0,0.2508]
[1743877812703,0.3671365,82993.0,82992.0,0.2508]
[1743877813108,0.7279365,82993.0,82992.0,0.0508]
[1743877813310,0.0843866,82983.0,82982.0,0.776]
[1743877813515,0.0843866,82983.0,82982.0,0.92793182]
[1743877813810,0.5670866,82983.0,82982.0,0.15193182]
[1743877814019,0.5678866,82983.0,82982.0,0.10064]
[1743877814205,0.7178866,82983.0,82982.0,0.03834]
[1743877814412,0.0843897,82980.0,82979.0,0.35917546]
[1743877814605,0.0853097,82980.0,82979.0,0.40981546]
[1743877814804,0.1262097,82980.0,82979.0,0.40981546]
[1743877815513,0.1262097,82980.0,82979.0,0.41081546]
[1743877815702,0.1262097,82980.0,82979.0,0.41181546]
[1743877815907,0.3262097,82980.0,82979.0,0.41181546]
[1743877816508,0.3262097,82980.0,82979.0,0.21181546]
[1743877817511,0.3643097,82980.0,82979.0,0.21181546]
[1743877818928,0.47266205,82980.0,82979.0,0.05264]
[1743877819112,0.47266205,82980.0,82979.0,0.052]
[1743877819313,0.47266205,82980.0,82979.0,0.1363907]
[1743877820419,0.47266205,82980.0,82979.0,0.1370707]
[1743877821722,0.47266205,82980.0,82979.0,0.05268]
[1743877821922,0.47266205,82980.0,82979.0,0.052]
[1743877823019,0.3643097,82980.0,82979.0,0.052]
[1743877825226,0.3234097,82980.0,82979.0,0.05292]
[1743877825426,0.3234097,82980.0,82979.0,0.052]
[1743877825729,0.3144797,82980.0,82979.0,0.05264]
[1743877826027,0.3144797,82980.0,82979.0,0.13554]
[1743877828823,0.3144797,82980.0,82979.0,0.2199307]
[1743877831323,0.3144797,82980.0,82979.0,0.2612307]
[1743877831524,0.28022,82980.0,82979.0,0.2612307]
[1743877831718,0.20092,82980.0,82979.0,0.2612307]
[1743877832619,0.24172,82980.0,82979.0,0.2612307]
[1743877833022,0.3261097,82980.0,82979.0,0.2612307]
[1743877833219,0.1261097,82980.0,82979.0,0.2612307]
[1743877833415,0.04172,82980.0,82979.0,0.2612307]
[1743877833630,0.1261097,82980.0,82979.0,0.2612307]
[1743877834225,0.04172,82980.0,82979.0,0.2612307]
[1743877834422,0.0408,82980.0,82979.0,0.2612307]
[1743877835634,0.04176001,82980.0,82979.0,0.2612307]
[1743877836225,0.0408,82980.0,82979.0,0.2612307]
[1743877837329,0.04172,82980.0,82979.0,0.2612307]
[1743877837634,0.04172,82980.0,82979.0,0.6220307]
[1743877837934,0.00092,82980.0,82979.0,0.6220307]
[1743877838132,0.0394,82982.0,82981.0,0.0843887]
[1743877838333,0.0853076,82982.0,82981.0,0.3550287]
[1743877838535,0.1259076,82982.0,82981.0,0.4374287]
[1743877839528,0.1672076,82982.0,82981.0,0.4374287]
[1743877839729,0.1672076,82982.0,82981.0,0.4384287]
[1743877840238,0.1672076,82982.0,82981.0,0.8002287]
[1743877842549,0.1672076,82982.0,82981.0,0.4394287]
[1743877842751,0.1672076,82982.0,82981.0,0.8002287]
[1743877843141,0.1672076,82982.0,82981.0,0.71584]
[1743877843339,0.1672076,82982.0,82981.0,0.8002287]
[1743877844249,0.1672076,82982.0,82981.0,0.85152577]
[1743877845145,0.1672076,82982.0,82981.0,0.8002287]
[1743877845446,0.1672076,82982.0,82981.0,0.49074016]
[1743877845653,0.1672076,82982.0,82981.0,0.8002287]
[1743877846049,0.1672076,82982.0,82981.0,0.4394287]
[1743877846249,0.1672076,82982.0,82981.0,0.49075507]
[1743877846449,0.1672076,82982.0,82981.0,0.4394287]
[1743877847349,0.1672076,82982.0,82981.0,0.49077294]
[1743877850854,0.1672076,82982.0,82981.0,0.32398424]
[1743877851046,0.2063076,82982.0,82981.0,0.32398424]
[1743877851349,0.2063076,82982.0,82981.0,0.27264]
[1743877851749,0.1259076,82982.0,82981.0,0.3993287]
[1743877851945,0.1259076,82982.0,82981.0,0.3358832]
[1743877852355,0.3259076,82982.0,82981.0,0.2514945]
[1743877852554,0.3693076,82982.0,82981.0,0.2514945]
[1743877854858,0.3693076,82982.0,82981.0,0.4677648]
[1743877859259,0.3693076,82982.0,82981.0,0.5521535]
[1743877859660,0.19013,82982.0,82981.0,0.5521535]
[1743877860068,0.0851476,82982.0,82981.0,0.5521535]
[1743877860562,0.0843876,82982.0,82981.0,0.4677648]
[1743877860756,0.1282276,82982.0,82981.0,0.4677648]
[1743877860967,0.1705276,82982.0,82981.0,0.3825648]
[1743877861261,0.2105276,82982.0,82981.0,0.3825648]
[1743877861759,0.2105276,82982.0,82981.0,0.3402648]
[1743877861963,0.4105276,82982.0,82981.0,0.3402648]
[1743877862756,0.4105276,82982.0,82981.0,0.1239945]
[1743877863459,0.4105276,82982.0,82981.0,0.1662945]
[1743877872455,0.3705276,82982.0,82981.0,0.1662945]
[1743877872657,0.3282276,82982.0,82981.0,0.2506832]
[1743877872857,0.3282276,82982.0,82981.0,0.2899832]
[1743877873867,0.3282276,82982.0,82981.0,0.2055945]
[1743877874568,0.3705276,82982.0,82981.0,0.1239945]
[1743877874764,0.4107276,82982.0,82981.0,0.1239945]
[1743877876769,0.0843917,82978.0,82976.0,0.6491604]
[1743877876966,0.1692927,82977.0,82976.0,0.9100004]
[1743877877166,0.1701327,82977.0,82976.0,0.9613958]
[1743877877558,0.3701327,82977.0,82976.0,0.9613958]
[1743877877765,0.3701327,82977.0,82976.0,1.01141821]
[1743877878664,0.3701327,82977.0,82976.0,1.05261821]
[1743877878868,0.3701327,82977.0,82976.0,1.05361821]
[1743877879868,0.3701327,82977.0,82976.0,1.09731821]
[1743877880068,0.3701327,82977.0,82976.0,0.80895781]
[1743877880268,0.3701327,82977.0,82976.0,0.80995781]
[1743877880868,0.3701327,82977.0,82976.0,0.36425781]
[1743877881570,0.0843968,82973.0,82972.0,1e-08]
[1743877881768,0.4463568,82973.0,82972.0,1e-08]
[1743877882074,0.0844294,82941.0,82940.0,0.5066364]
[1743877882371,0.0844294,82941.0,82940.0,0.51763134]
[1743877882566,0.0844294,82941.0,82940.0,0.4666364]
[1743877882765,0.1698294,82941.0,82940.0,0.5510668]
[1743877882968,0.0854,82941.0,82940.0,0.5510668]
[1743877883169,0.1709094,82941.0,82940.0,0.5599608]
[1743877883371,0.1698294,82941.0,82940.0,0.6418608]
[1743877883669,0.1698294,82941.0,82940.0,0.6438608]
[1743877884174,0.1698294,82941.0,82940.0,0.3372244]
[1743877884472,0.3698294,82941.0,82940.0,0.38710241]
[1743877884769,0.3273294,82941.0,82940.0,0.38710241]
[1743877885176,0.3284094,82941.0,82940.0,0.38818241]
[1743877886772,0.3284094,82941.0,82940.0,0.30375201]
[1743877895575,0.20108,82941.0,82940.0,0.38818241]
[1743877895984,0.2855094,82941.0,82940.0,0.38818241]
[1743877896286,0.0855094,82941.0,82940.0,0.38818241]
[1743877896486,0.0844294,82941.0,82940.0,0.38818241]
[1743877897788,0.042,82942.0,82941.0,0.0844294]
[1743877898086,0.042,82942.0,82941.0,0.4911294]
[1743877898675,0.00011,90533.0,82948.0,0.0844222]
[1743877898676,0.15023811,82954.0,82948.0,0.0844222]
[1743877898885,0.08568195,82949.0,82948.0,0.7152222]
[1743877899084,0.08568195,82949.0,82948.0,0.7587222]
[1743877899285,0.08460195,82949.0,82948.0,0.7587222]
[1743877899987,0.08460195,82949.0,82948.0,0.8025222]
[1743877899988,0.12870195,82949.0,82948.0,0.8025222]
[1743877900189,0.12978195,82949.0,82948.0,0.8031622]
[1743877900378,0.04536075,82949.0,82948.0,0.8031622]
[1743877900573,0.00018075,82949.0,82948.0,0.8031622]
[1743877900784,0.00018075,82949.0,82948.0,0.8041622]
[1743877901591,0.10802961,82955.0,82952.0,0.042209]
[1743877901785,0.10914962,82955.0,82954.0,0.0844161]
[1743877901985,0.0421993,82972.0,82961.0,0.084409]
[1743877902191,0.14479948,82962.0,82961.0,0.345049]
[1743877902385,0.14479948,82962.0,82961.0,0.428449]
[1743877903484,0.14403948,82962.0,82961.0,0.428449]
[1743877903885,0.22920748,82962.0,82961.0,0.428449]
[1743877904688,0.27240748,82962.0,82961.0,0.428449]
[1743877904892,0.128368,82962.0,82961.0,0.428449]
[1743877905082,0.127608,82962.0,82961.0,0.428449]
[1743877905488,0.128408,82962.0,82961.0,0.428449]
[1743877905889,0.0008,82962.0,82961.0,0.428449]
[1743877906090,0.0422015,82967.0,82963.0,0.084407]
[1743877906091,0.0432,82964.0,82963.0,0.084407]
[1743877906290,0.0422015,82967.0,82966.0,0.0844039]
[1743877906291,0.00076,82967.0,82966.0,0.0844039]
[1743877906591,0.00076,82967.0,82966.0,0.4131639]
[1743877906792,0.0412,82968.0,82967.0,0.0844029]
[1743877906993,0.04192,82968.0,82967.0,0.7259229]
[1743877907192,0.04192,82968.0,82967.0,0.7710229]
[1743877907799,0.0412,82968.0,82967.0,0.7710229]
[1743877908991,0.14422023,82970.0,82969.0,0.0844009]
[1743877909198,0.00018075,82970.0,82969.0,0.3552409]
[1743877909398,0.00018075,82970.0,82969.0,0.3966409]
[1743877910400,0.00218075,82970.0,82969.0,0.3966409]
[1743877910802,0.00418075,82970.0,82969.0,0.3966409]
[1743877918600,0.11171167,82985.0,82984.0,0.0843856]
[1743877918805,0.11243167,82985.0,82984.0,0.7151856]
[1743877919004,0.11171167,82985.0,82984.0,0.7159056]
[1743877919307,0.11171167,82985.0,82984.0,0.7994056]
[1743877920008,0.12171167,82985.0,82984.0,0.8004056]
[1743877920814,0.12243167,82985.0,82984.0,0.8004056]
[1743877921116,0.12171167,82985.0,82984.0,0.8004056]
[1743877921311,0.12243167,82985.0,82984.0,0.8004056]
[1743877922012,0.01072,82985.0,82984.0,0.80960821]
[1743877922218,0.01,82985.0,82984.0,0.80960821]
[1743877924317,0.005,82985.0,82984.0,0.80960821]
[1743877925717,0.0435,82988.0,82987.0,0.0843826]
[1743877925919,0.0443,82988.0,82987.0,0.3551826]
[1743877926816,0.2443,82988.0,82987.0,0.3551826]
[1743877928621,0.2443,82988.0,82987.0,0.2708]
[1743877928815,0.3286815,82988.0,82987.0,0.2708]
[1743877929118,0.3286815,82988.0,82987.0,0.0708]
[1743877929311,0.0843846,82985.0,82984.0,0.00920261]
[1743877929511,0.0843917,82978.0,82977.0,0.3608]
[1743877929712,0.00072,82978.0,82977.0,0.7159927]
[1743877929907,0.00072,82978.0,82977.0,0.72520713]
[1743877930121,0.089,82980.0,82979.0,0.0843907]
[1743877930322,0.089,82980.0,82979.0,0.3553107]
[1743877930522,0.089,82980.0,82979.0,0.4407107]
[1743877932320,0.089,82980.0,82979.0,0.4417107]
[1743877932720,0.0433,82990.0,82988.0,0.0843812]
[1743877932922,0.0850195,82990.0,82989.0,0.0867]
[1743877933224,0.0850195,82990.0,82989.0,0.3577]
[1743877934025,0.3270195,82990.0,82989.0,0.3577]
[1743877934724,0.24264,82990.0,82989.0,0.3577]
[1743877935025,0.3608,82996.0,82989.0,0.3577]
[1743877935026,0.0421781,83013.0,82989.0,0.3577]
[1743877935327,0.041,83002.0,82997.0,0.0843724]
[1743877935527,0.041,83002.0,82997.0,0.3354924]
[1743877935728,0.0843693,83001.0,82997.0,0.3789924]
[1743877935919,0.0441,83001.0,82997.0,0.3789924]